fUST/lending_fUST_20240804
["ID","MTS","AMOUNT","RATE_DAILY","PERIOD"]
[334041650,1722700832797,200.0,0.00023125,120]
[334041651,1722700891349,200.0,0.00022427,120]
[334041653,1722701154151,-273.37336231,9.9e-05,2]
[334041654,1722701154173,-155.59262358,9.999e-05,2]
[334041655,1722701154196,-200.05722375,0.0001002,2]
[334041656,1722701154232,-157.667561,0.00011656,2]
[334041657,1722701154256,-106.87456577,0.00011723,2]
[334041658,1722701192130,-273.37336231,9.9e-05,2]
[334041659,1722701192154,-50.79299523,0.00011723,2]
[334041660,1722701192176,-157.667561,0.00011791,2]
[334041661,1722701192198,-157.667561,0.00011858,2]
[334041662,1722701192223,-157.667561,0.00011926,2]
[334041663,1722701192246,-157.667561,0.00011993,2]
[334041664,1722701192273,-157.667561,0.00012061,2]
[334041665,1722701192511,-81.71486095,0.00012128,2]
[334041666,1722701234123,-273.37336231,9.9e-05,2]
[334041667,1722701234144,-1346.34487087,0.00012128,2]
[334041668,1722701241974,-273.37336231,9.9e-05,2]
[334041669,1722701241997,-2255.56990281,0.00012128,2]
[334041670,1722701242018,-822.26492701,0.00012128,2]
[334041671,1722701242040,-154.74861617,0.00012128,2]
[334041672,1722701242060,-1492.75012023,0.00012128,2]
[334041673,1722701242080,-15066.86148555,0.00012128,2]
[334041674,1722701242100,-3785.54866294,0.00012128,2]
[334041675,1722701242120,-2107.67550275,0.00012128,2]
[334041676,1722701242141,-404.72502915,0.00012128,2]
[334041677,1722701242162,-218.345205,0.00012128,2]
[334041678,1722701242182,-4712.37284123,0.00012128,2]
[334041679,1722701242201,-1529.43757842,0.00012128,2]
[334041680,1722701242222,-75.95270005,0.00012128,2]
[334041681,1722701242251,-157.667561,0.00012196,2]
[334041682,1722701242273,-157.667561,0.00012263,2]
[334041683,1722701242293,-300.0,0.00012344,2]
[334041684,1722701242313,-17046.07835201,0.00012346,2]
[334041685,1722701353104,-273.37336231,9.9e-05,2]
[334041686,1722701355077,273.37336231,9.801e-05,2]
[334041687,1722701363605,166.08550298,9.9e-05,2]
[334041688,1722701364094,-107.28785933,9.9e-05,2]
[334041689,1722701364119,-7853.92164799,0.00012346,2]
[334041690,1722701364140,-4712.37284123,0.00012346,2]
[334041691,1722701364162,-1492.75012023,0.00012346,2]
[334041692,1722701364185,-3785.54866294,0.00012346,2]
[334041693,1722701364212,-218.345205,0.00012346,2]
[334041694,1722701364236,-404.72502915,0.00012346,2]
[334041695,1722701364256,-167.426107,0.00012986,2]
[334041696,1722701364282,-492.46705993,0.00013,2]
[334041697,1722701364307,-500.0,0.00013424,2]
[334041698,1722701364331,-500.0,0.00013424,2]
[334041699,1722701364355,-4445.73912788,0.00013598,2]
[334041700,1722701364377,-1329.43292057,0.00013598,2]
[334041701,1722701364399,-544.75,0.00013687,2]
[334041702,1722701364421,-17912.79907875,0.00013688,2]
[334041703,1722701368119,-19655.8941922,0.00012397,2]
[334041786,1722701433070,-273.37336231,9.9e-05,2]
[334041788,1722701433084,-309.3349299,0.0001188,2]
[334041790,1722701433095,-218.345205,0.0001188,2]
[334041792,1722701433107,-724.32150279,0.0001188,2]
[334042115,1722701438736,-260.5699995,9.9e-05,2]
[334042117,1722701439004,-12.80336281,9.9e-05,2]
[334042119,1722701439015,-3988.05133844,0.0001188,2]
[334042120,1722701439026,-616.97897138,0.0001188,2]
[334042122,1722701439039,-1492.75012023,0.0001188,2]
[334042124,1722701439049,-404.72502915,0.0001188,2]
[334042126,1722701439059,-3785.54866294,0.0001188,2]
[334042128,1722701439070,-3601.91477368,0.00012397,2]
[334042130,1722701439082,-5244.1058078,0.00012397,2]
[334042132,1722701439093,-500.0,0.00013687,2]
[334042134,1722701439105,-24825.82930525,0.00013688,2]
[334042136,1722701439116,-500.0,0.00013697,2]
[334042138,1722701439127,-544.75,0.00013697,2]
[334042140,1722701439137,-504.20394841,0.00013698,2]
[334042142,1722701439146,-161.34650055,0.00013698,2]
[334042144,1722701439158,-500.0,0.00013698,2]
[334042146,1722701439168,-500.0,0.00013698,2]
[334042148,1722701439178,-500.0,0.00013698,2]
[334042150,1722701439188,-500.0,0.00013698,2]
[334042152,1722701439198,-500.0,0.00013698,2]
[334042154,1722701439207,-500.0,0.00013698,2]
[334042155,1722701439217,-500.0,0.00013698,2]
[334042157,1722701439227,-500.0,0.00013698,2]
[334042159,1722701439236,-500.0,0.00013698,2]
[334042161,1722701439245,-500.0,0.00013698,2]
[334042163,1722701439255,-500.0,0.00013698,2]
[334042165,1722701439264,-500.0,0.00013698,2]
[334042166,1722701439274,-500.0,0.00013698,2]
[334042168,1722701439291,-500.0,0.00013698,2]
[334042170,1722701439303,-500.0,0.00013698,2]
[334042172,1722701439313,-500.0,0.00013698,2]
[334042173,1722701439322,-500.0,0.00013698,2]
[334042175,1722701439334,-500.0,0.00013698,2]
[334042177,1722701439343,-500.0,0.00013698,2]
[334042178,1722701439353,-500.0,0.00013698,2]
[334042179,1722701439362,-422.94463536,0.00013698,2]
[334042180,1722701439370,-500.0,0.00013698,2]
[334042181,1722701439383,-275.66109632,0.00013698,2]
[334042182,1722701439395,-500.0,0.00013698,2]
[334042183,1722701439405,-180.58631501,0.00013698,2]
[334042184,1722701439415,-500.0,0.00013698,2]
[334042185,1722701439425,-523.39975054,0.00013698,2]
[334042186,1722701439436,-500.0,0.00013698,2]
[334042187,1722701439449,-500.0,0.00013698,2]
[334042188,1722701439460,-500.0,0.00013698,2]
[334042189,1722701439471,-500.0,0.00013698,2]
[334042190,1722701439482,-500.0,0.00013698,2]
[334042191,1722701439493,-630.91535431,0.00013698,2]
[334042192,1722701439503,-500.0,0.00013698,2]
[334042193,1722701439515,-500.0,0.00013698,2]
[334042194,1722701439527,-500.0,0.00013698,2]
[334042195,1722701439544,-500.0,0.00013698,2]
[334042196,1722701439555,-500.0,0.00013698,2]
[334042197,1722701439566,-500.0,0.00013698,2]
[334042198,1722701439577,-500.0,0.00013698,2]
[334042199,1722701439589,-500.0,0.00013698,2]
[334042200,1722701439598,-511.09580272,0.00013698,2]
[334042201,1722701439608,-500.0,0.00013698,2]
[334042202,1722701439618,-505.76600272,0.00013698,2]
[334042203,1722701439629,-500.0,0.00013698,2]
[334042204,1722701439639,-500.0,0.00013698,2]
[334042205,1722701439650,-150.41870089,0.00013698,2]
[334042206,1722701439660,-500.0,0.00013698,2]
[334042207,1722701439670,-502.33841024,0.00013698,2]
[334042208,1722701439679,-150.0,0.00013698,2]
[334042209,1722701439689,-345.75199749,0.00013698,2]
[334042210,1722701439698,-500.0,0.00013698,2]
[334042211,1722701439708,-501.35822863,0.00013698,2]
[334042212,1722701439718,-500.0,0.00013698,2]
[334042213,1722701439727,-500.0,0.00013698,2]
[334042214,1722701439737,-500.0,0.00013698,2]
[334042215,1722701439746,-500.0,0.00013698,2]
[334042216,1722701439755,-500.0,0.00013698,2]
[334042217,1722701439765,-431.16176155,0.00013698,2]
[334042218,1722701439775,-500.0,0.00013698,2]
[334042219,1722701439785,-500.0,0.00013698,2]
[334042220,1722701439795,-500.0,0.00013698,2]
[334042221,1722701439804,-505.11933782,0.00013698,2]
[334042222,1722701439814,-507.16405368,0.00013698,2]
[334042223,1722701439824,-500.0,0.00013698,2]
[334042224,1722701439835,-500.0,0.00013698,2]
[334042225,1722701439844,-500.0,0.00013698,2]
[334042226,1722701439853,-518.3949483,0.00013698,2]
[334042227,1722701439863,-500.0,0.00013698,2]
[334042228,1722701439872,-500.0,0.00013698,2]
[334042229,1722701439882,-500.0,0.00013698,2]
[334042230,1722701439892,-500.0,0.00013698,2]
[334042231,1722701439901,-500.0,0.00013698,2]
[334042232,1722701439911,-507.57712413,0.00013698,2]
[334042233,1722701439921,-402.27971107,0.00013698,2]
[334042234,1722701439931,-500.0,0.00013698,2]
[334042235,1722701439941,-500.0,0.00013698,2]
[334042236,1722701439951,-510.8010597,0.00013698,2]
[334042237,1722701439961,-518.97106796,0.00013698,2]
[334042238,1722701439972,-500.0,0.00013698,2]
[334042239,1722701439982,-500.0,0.00013698,2]
[334042240,1722701439992,-500.0,0.00013698,2]
[334042241,1722701440002,-500.0,0.00013698,2]
[334042242,1722701440012,-500.0,0.00013698,2]
[334042243,1722701440021,-500.0,0.00013698,2]
[334042244,1722701440035,-500.0,0.00013698,2]
[334042245,1722701440044,-505.16610976,0.00013698,2]
[334042246,1722701440055,-500.0,0.00013698,2]
[334042247,1722701440065,-500.0,0.00013698,2]
[334042248,1722701440076,-500.0,0.00013698,2]
[334042249,1722701440085,-500.0,0.00013698,2]
[334042250,1722701440095,-500.0,0.00013698,2]
[334042251,1722701440106,-500.0,0.00013698,2]
[334042252,1722701440116,-500.0,0.00013698,2]
[334042253,1722701440127,-500.0,0.00013698,2]
[334042254,1722701440138,-500.0,0.00013698,2]
[334042255,1722701440148,-500.0,0.00013698,2]
[334042256,1722701440157,-500.0,0.00013698,2]
[334042257,1722701440167,-500.0,0.00013698,2]
[334042258,1722701440177,-500.0,0.00013698,2]
[334042259,1722701440186,-500.0,0.00013698,2]
[334042261,1722701440195,-500.0,0.00013698,2]
[334042263,1722701440207,-500.0,0.00013698,2]
[334042264,1722701440216,-500.0,0.00013698,2]
[334042265,1722701440227,-503.19716598,0.00013698,2]
[334042266,1722701440236,-500.0,0.00013698,2]
[334042267,1722701440246,-500.0,0.00013698,2]
[334042268,1722701440257,-500.0,0.00013698,2]
[334042269,1722701440268,-500.0,0.00013698,2]
[334042270,1722701440280,-500.0,0.00013698,2]
[334042271,1722701440298,-500.0,0.00013698,2]
[334042273,1722701440308,-500.0,0.00013698,2]
[334042275,1722701440318,-500.0,0.00013698,2]
[334042276,1722701440331,-500.0,0.00013698,2]
[334042278,1722701440340,-500.0,0.00013698,2]
[334042281,1722701440350,-500.0,0.00013698,2]
[334042283,1722701440359,-500.0,0.00013698,2]
[334042284,1722701440371,-500.0,0.00013698,2]
[334042287,1722701440382,-500.0,0.00013698,2]
[334042289,1722701440392,-500.0,0.00013698,2]
[334042290,1722701440402,-504.04210718,0.00013698,2]
[334042291,1722701440412,-500.0,0.00013698,2]
[334042293,1722701440424,-500.0,0.00013698,2]
[334042294,1722701440434,-500.0,0.00013698,2]
[334042295,1722701440445,-717.02,0.00013698,2]
[334042296,1722701440455,-500.0,0.00013698,2]
[334042297,1722701440465,-500.0,0.00013698,2]
[334042298,1722701440477,-388.7974375,0.00013698,2]
[334042299,1722701440487,-500.0,0.00013698,2]
[334042300,1722701440496,-500.0,0.00013698,2]
[334042301,1722701440506,-500.0,0.00013698,2]
[334042302,1722701440517,-621.38,0.00013698,2]
[334042303,1722701440526,-500.0,0.00013698,2]
[334042305,1722701440539,-500.0,0.00013698,2]
[334042306,1722701440549,-500.0,0.00013698,2]
[334042307,1722701440558,-500.0,0.00013698,2]
[334042308,1722701440567,-500.0,0.00013698,2]
[334042309,1722701440576,-500.0,0.00013698,2]
[334042311,1722701440586,-500.0,0.00013698,2]
[334042313,1722701440595,-500.0,0.00013698,2]
[334042314,1722701440604,-502.88311085,0.00013698,2]
[334042316,1722701440614,-500.0,0.00013698,2]
[334042318,1722701440624,-500.0,0.00013698,2]
[334042320,1722701440634,-500.0,0.00013698,2]
[334042322,1722701440644,-503.34806146,0.00013698,2]
[334042324,1722701440653,-500.0,0.00013698,2]
[334042326,1722701440664,-500.0,0.00013698,2]
[334042328,1722701440673,-500.0,0.00013698,2]
[334042330,1722701440683,-500.0,0.00013698,2]
[334042331,1722701440693,-500.0,0.00013698,2]
[334042332,1722701440702,-500.0,0.00013698,2]
[334042334,1722701440711,-500.0,0.00013698,2]
[334042336,1722701440722,-500.0,0.00013698,2]
[334042337,1722701440731,-500.0,0.00013698,2]
[334042338,1722701440741,-405.2447149,0.00013698,2]
[334042339,1722701440757,-94.7552851,0.00013698,2]
[334042340,1722701440767,-500.0,0.00013698,2]
[334042341,1722701440776,-14.6047149,0.00013698,2]
[334042342,1722701440788,-485.3952851,0.00013698,2]
[334042343,1722701440798,-500.0,0.00013698,2]
[334042344,1722701440808,-500.0,0.00013698,2]
[334042345,1722701440818,-500.0,0.00013698,2]
[334042347,1722701440828,-500.0,0.00013698,2]
[334042349,1722701440838,-500.0,0.00013698,2]
[334042351,1722701440848,-500.0,0.00013698,2]
[334042353,1722701440857,-500.0,0.00013698,2]
[334042354,1722701440867,-500.0,0.00013698,2]
[334042355,1722701440877,-500.0,0.00013698,2]
[334042356,1722701440887,-500.0,0.00013698,2]
[334042357,1722701440896,-480.68196982,0.00013698,2]
[334042358,1722701440905,-500.0,0.00013698,2]
[334042359,1722701440914,-500.0,0.00013698,2]
[334042360,1722701440924,-500.0,0.00013698,2]
[334042361,1722701440934,-500.0,0.00013698,2]
[334042362,1722701440944,-500.0,0.00013698,2]
[334042363,1722701440954,-500.0,0.00013698,2]
[334042364,1722701440964,-500.0,0.00013698,2]
[334042365,1722701440973,-631.66,0.00013698,2]
[334042366,1722701440982,-500.0,0.00013698,2]
[334042367,1722701440992,-500.0,0.00013698,2]
[334042368,1722701441001,-500.0,0.00013698,2]
[334042369,1722701441010,-500.0,0.00013698,2]
[334042370,1722701441019,-500.0,0.00013698,2]
[334042371,1722701441031,-552.96,0.00013698,2]
[334042372,1722701441041,-500.0,0.00013698,2]
[334042373,1722701441051,-500.0,0.00013698,2]
[334042374,1722701441061,-500.0,0.00013698,2]
[334042375,1722701441071,-500.0,0.00013698,2]
[334042376,1722701441080,-500.0,0.00013698,2]
[334042377,1722701441090,-61.91284223,0.00013698,2]
[334042378,1722701441103,-438.08715777,0.00013698,2]
[334042379,1722701441112,-439.534697,0.00013698,2]
[334042380,1722701441122,-500.0,0.00013698,2]
[334042381,1722701441132,-500.0,0.00013698,2]
[334042382,1722701441143,-500.0,0.00013698,2]
[334042383,1722701441153,-500.0,0.00013698,2]
[334042384,1722701441164,-500.0,0.00013698,2]
[334042385,1722701441176,-500.0,0.00013698,2]
[334042386,1722701441186,-500.0,0.00013698,2]
[334042387,1722701441197,-500.0,0.00013698,2]
[334042388,1722701441207,-500.0,0.00013698,2]
[334042389,1722701441218,-500.0,0.00013698,2]
[334042390,1722701441228,-1769.75,0.00013698,2]
[334042391,1722701441238,-1769.75,0.00013698,2]
[334042392,1722701441247,-1769.75,0.00013698,2]
[334042393,1722701441257,-1769.75,0.00013698,2]
[334042394,1722701441267,-500.0,0.00013698,2]
[334042395,1722701441276,-500.0,0.00013698,2]
[334042396,1722701441289,-500.0,0.00013698,2]
[334042397,1722701441302,-500.0,0.00013698,2]
[334042398,1722701441311,-500.0,0.00013698,2]
[334042399,1722701441322,-500.0,0.00013698,2]
[334042400,1722701441332,-500.0,0.00013698,2]
[334042401,1722701441343,-500.0,0.00013698,2]
[334042402,1722701441353,-500.0,0.00013698,2]
[334042403,1722701441363,-500.0,0.00013698,2]
[334042404,1722701441374,-500.0,0.00013698,2]
[334042405,1722701441384,-500.0,0.00013698,2]
[334042406,1722701441394,-506.22815648,0.00013698,2]
[334042407,1722701441404,-500.0,0.00013698,2]
[334042408,1722701441414,-500.0,0.00013698,2]
[334042409,1722701441424,-500.0,0.00013698,2]
[334042410,1722701441433,-500.0,0.00013698,2]
[334042411,1722701441442,-228.184347,0.00013699,2]
[334042412,1722701441451,-2129.83145072,0.00013799,2]
[334042413,1722701441462,-4445.73912787,0.00013804,2]
[334042414,1722701441471,-150.112233,0.000139,2]
[334042415,1722701441481,-21369.314192,0.00013962,2]
[334042416,1722701441490,-1769.75,0.00013971,2]
[334042417,1722701441500,-1769.75,0.00013971,2]
[334042418,1722701441510,-500.0,0.00013972,2]
[334042419,1722701441519,-500.001607,0.00013972,2]
[334042420,1722701441531,-500.0,0.00013972,2]
[334042421,1722701441541,-500.0,0.00013972,2]
[334042422,1722701441550,-500.0,0.00013972,2]
[334042423,1722701441560,-500.0,0.00013972,2]
[334042424,1722701441569,-500.0,0.00013972,2]
[334042425,1722701441578,-500.0,0.00013972,2]
[334042426,1722701441677,-500.0,0.00013972,2]
[334042427,1722701441686,-500.0,0.00013972,2]
[334042428,1722701441696,-500.0,0.00013972,2]
[334042429,1722701441705,-500.0,0.00013972,2]
[334042430,1722701441715,-500.0,0.00013972,2]
[334042431,1722701441724,-500.0,0.00013972,2]
[334042432,1722701441733,-500.0,0.00013972,2]
[334042433,1722701441742,-500.0,0.00013972,2]
[334042434,1722701441753,-500.0,0.00013972,2]
[334042435,1722701441762,-500.0,0.00013972,2]
[334042436,1722701441772,-500.0,0.00013972,2]
[334042437,1722701441783,-62.46703114,0.00013972,2]
[334042438,1722701442505,-437.53296886,0.00013972,2]
[334042439,1722701442515,-500.0,0.00013972,2]
[334042440,1722701442526,-500.0,0.00013972,2]
[334042441,1722701442538,-500.0,0.00013972,2]
[334042442,1722701442550,-500.0,0.00013972,2]
[334042443,1722701442560,-500.0,0.00013972,2]
[334042444,1722701442569,-500.0,0.00013972,2]
[334042445,1722701442579,-500.0,0.00013972,2]
[334042446,1722701442589,-500.0,0.00013972,2]
[334042447,1722701442600,-500.0,0.00013972,2]
[334042448,1722701442610,-500.0,0.00013972,2]
[334042449,1722701442619,-180.36029865,0.00013972,2]
[334042450,1722701442633,-319.63970135,0.00013972,2]
[334042451,1722701442644,-3.77931715,0.00013972,2]
[334042484,1722701443759,-500.0,0.00013972,2]
[334042485,1722701443768,-500.0,0.00013972,2]
[334042486,1722701443778,-500.0,0.00013972,2]
[334042487,1722701443793,-644.9793789,0.00013972,2]
[334042488,1722701443922,-72.0406211,0.00013972,2]
[334042489,1722701443933,-60.65038151,0.00013972,2]
[334042490,1722701443946,-439.34961849,0.00013972,2]
[334042491,1722701443955,-550.99894787,0.00013972,2]
[334042492,1722701443966,-500.0,0.00013972,2]
[334042493,1722701443978,-500.0,0.00013972,2]
[334042494,1722701443990,-621.38,0.00013972,2]
[334042495,1722701444000,-500.0,0.00013972,2]
[334042496,1722701444011,-500.0,0.00013972,2]
[334042497,1722701444023,-500.0,0.00013972,2]
[334042498,1722701444036,-359.85638767,0.00013972,2]
[334042499,1722701444046,-500.0,0.00013972,2]
[334042500,1722701444055,-500.0,0.00013972,2]
[334042501,1722701444064,-500.0,0.00013972,2]
[334042502,1722701444074,-500.0,0.00013972,2]
[334042503,1722701444083,-500.0,0.00013972,2]
[334042504,1722701444095,-500.0,0.00013972,2]
[334042505,1722701444104,-500.0,0.00013972,2]
[334042506,1722701444113,-500.0,0.00013972,2]
[334042507,1722701444124,-500.0,0.00013972,2]
[334042508,1722701444135,-500.0,0.00013972,2]
[334042509,1722701444144,-500.0,0.00013972,2]
[334042510,1722701444154,-500.0,0.00013972,2]
[334042511,1722701444163,-500.0,0.00013972,2]
[334042512,1722701444173,-500.0,0.00013972,2]
[334042513,1722701444182,-500.0,0.00013972,2]
[334042514,1722701444192,-500.0,0.00013972,2]
[334042515,1722701444201,-500.0,0.00013972,2]
[334042516,1722701444211,-500.0,0.00013972,2]
[334042517,1722701444220,-500.0,0.00013972,2]
[334042518,1722701444230,-500.0,0.00013972,2]
[334042519,1722701444239,-500.0,0.00013972,2]
[334042520,1722701444248,-500.0,0.00013972,2]
[334042521,1722701444258,-631.66,0.00013972,2]
[334042522,1722701444267,-500.0,0.00013972,2]
[334042523,1722701444277,-500.0,0.00013972,2]
[334042524,1722701444291,-500.0,0.00013972,2]
[334042525,1722701444306,-552.96,0.00013972,2]
[334042526,1722701444317,-500.0,0.00013972,2]
[334042527,1722701444328,-500.0,0.00013972,2]
[334042528,1722701444339,-500.0,0.00013972,2]
[334042529,1722701444348,-500.0,0.00013972,2]
[334042530,1722701444359,-500.0,0.00013972,2]
[334042531,1722701444371,-500.0,0.00013972,2]
[334042532,1722701444381,-500.0,0.00013972,2]
[334042533,1722701444392,-500.0,0.00013972,2]
[334042534,1722701444402,-500.0,0.00013972,2]
[334042535,1722701444413,-500.0,0.00013972,2]
[334042536,1722701444423,-500.0,0.00013972,2]
[334042537,1722701444435,-500.0,0.00013972,2]
[334042538,1722701444445,-500.0,0.00013972,2]
[334042539,1722701444456,-500.0,0.00013972,2]
[334042540,1722701444467,-500.0,0.00013972,2]
[334042541,1722701444479,-500.0,0.00013972,2]
[334042542,1722701444489,-500.0,0.00013972,2]
[334042543,1722701444501,-500.0,0.00013972,2]
[334042544,1722701444511,-500.0,0.00013972,2]
[334042545,1722701444522,-500.0,0.00013972,2]
[334042546,1722701444534,-500.0,0.00013972,2]
[334042547,1722701444545,-500.0,0.00013972,2]
[334042548,1722701444555,-500.0,0.00013972,2]
[334042549,1722701444565,-500.0,0.00013972,2]
[334042550,1722701444575,-500.0,0.00013972,2]
[334042551,1722701444586,-500.0,0.00013972,2]
[334042552,1722701444597,-500.0,0.00013972,2]
[334042553,1722701444606,-500.0,0.00013972,2]
[334042554,1722701444616,-500.0,0.00013972,2]
[334042555,1722701444625,-500.0,0.00013972,2]
[334042556,1722701444634,-500.0,0.00013972,2]
[334042557,1722701444644,-1091.50397563,0.00014,2]
[334042558,1722701444653,-286.58862085,0.00014,2]
[334042559,1722701444662,-4445.73912787,0.00014009,2]
[334042560,1722701444673,-18754.29548734,0.00014021,2]
[334042561,1722701444768,-609.06,0.00014021,2]
[334042634,1722701446894,-273.37336231,9.9e-05,2]
[334042635,1722701446903,-500.0,0.00013698,2]
[334042636,1722701446913,-447.18663769,0.00013972,2]
[334042646,1722702056345,1000.0,0.00014,14]
[334042657,1722702355153,-273.37336231,9.51e-05,2]
[334042658,1722702355178,-300.0,9.998e-05,2]
[334042659,1722702355200,-533.87977422,9.999e-05,2]
[334042660,1722702355223,-568.52238973,9.999e-05,2]
[334042661,1722702355248,-694.06857466,9.999e-05,2]
[334042662,1722702355277,-112.9994779,9.999e-05,2]
[334042665,1722702450157,-273.37336231,9.415e-05,2]
[334042666,1722702450181,-87.65326571,9.998e-05,2]
[334042711,1722702546198,-512.34673429,9.898e-05,2]
[334042712,1722702546222,-300.0,9.997e-05,2]
[334042713,1722702546245,-300.0,9.997e-05,2]
[334042714,1722702546268,-208.20192097,9.998e-05,2]
[334042715,1722702546303,-4712.37284123,9.998e-05,2]
[334042716,1722702546326,-3301.10227931,9.998e-05,2]
[334042717,1722702546348,-218.345205,9.998e-05,2]
[334042718,1722702546371,-3601.91477368,9.998e-05,2]
[334042719,1722702546393,-218.345205,9.998e-05,2]
[334042720,1722702546417,-1492.75012023,9.998e-05,2]
[334042721,1722702546441,-418.94347182,9.999e-05,2]
[334042722,1722702546463,-727.46839186,9.999e-05,2]
[334042723,1722702546489,-664.18424721,9.999e-05,2]
[334042724,1722702546511,-180.46429061,9.999e-05,2]
[334042725,1722702546538,-231.66511805,9.999e-05,2]
[334042726,1722702546567,-165.52155498,9.999e-05,2]
[334042727,1722702546589,-779.05126421,9.999e-05,2]
[334042728,1722702546612,-338.43304907,9.999e-05,2]
[334042729,1722702546634,-506.44029984,9.999e-05,2]
[334042730,1722702546657,-201.45923245,9.999e-05,2]
[334042731,1722702546683,-403.7082582,9.999e-05,2]
[334042732,1722702546707,-156.80608978,9.999e-05,2]
[334042733,1722702546731,-413.87776733,9.999e-05,2]
[334042734,1722702546754,-154.71377951,9.999e-05,2]
[334042735,1722702546776,-195.75330687,9.999e-05,2]
[334042736,1722702546805,-494.19612385,9.999e-05,2]
[334042737,1722702546827,-154.82354568,9.999e-05,2]
[334042738,1722702546849,-309.38125679,9.999e-05,2]
[334042739,1722702546870,-155.26576617,9.999e-05,2]
[334042740,1722702546891,-154.82966521,9.999e-05,2]
[334042741,1722702546914,-286.07491709,9.999e-05,2]
[334042742,1722702546938,-181.61830083,9.999e-05,2]
[334042743,1722702546960,-1492.75012023,9.999e-05,2]
[334042744,1722702546983,-215.71499893,9.999e-05,2]
[334042745,1722702547005,-568.52238973,9.999e-05,2]
[334042746,1722702547027,-154.77557542,9.999e-05,2]
[334042747,1722702547056,-533.87977422,9.999e-05,2]
[334042748,1722702547077,-154.77557542,9.999e-05,2]
[334042749,1722702547099,-157.79229303,9.999e-05,2]
[334042750,1722702547119,-179.27561993,0.0001,2]
[334042751,1722702547140,-200.0,0.000103,2]
[334042752,1722702547162,-420.0,0.00010997,2]
[334042753,1722702547188,-20038.3186955,0.00011178,2]
[334042754,1722702548114,-1419.75899914,0.00011178,2]
[334042755,1722702555147,-273.37336231,9.9e-05,2]
[334042756,1722702555168,-76.33210405,9.998e-05,2]
[334042815,1722702637408,-1416.41801618,9.898e-05,2]
[334042818,1722702637418,-1416.41801618,9.998e-05,2]
[334042820,1722702637428,-2977.36396764,9.998e-05,2]
[334042821,1722702637466,-630.82709735,9.998e-05,2]
[334042822,1722702637480,-467.09929999,9.998e-05,2]
[334042823,1722702637491,-637.08247625,9.998e-05,2]
[334042824,1722702637501,-290.36567298,9.999e-05,2]
[334042825,1722702637511,-290.36567298,9.999e-05,2]
[334042826,1722702637520,-155.73497751,9.999e-05,2]
[334042827,1722702637530,-180.46429061,9.999e-05,2]
[334042830,1722702637540,-3441.92230536,0.00011178,2]
[334042831,1722702637549,-181.88916936,0.00012,2]
[334042834,1722702637559,-154.97098219,0.00012119,2]
[334042837,1722702637568,-280.48916005,0.00012119,2]
[334042839,1722702637578,-165.43542705,0.00012119,2]
[334042841,1722702637587,-260.34537136,0.00012119,2]
[334042843,1722702637596,-1426.12560185,0.00012119,2]
[334042861,1722702637902,-2175.78917183,0.00012119,2]
[334042862,1722702637912,-209.23872321,0.00012119,2]
[334042863,1722702637921,-515.14154961,0.00012119,2]
[334042864,1722702637931,-506.44029984,0.00012119,2]
[334042865,1722702637940,-552.26853777,0.00012119,2]
[334042866,1722702637950,-413.87776733,0.00012119,2]
[334042867,1722702637960,-336.05027019,0.00012119,2]
[334042868,1722702637969,-210.31538045,0.00012119,2]
[334042869,1722702637980,-297.10742848,0.00012119,2]
[334042870,1722702637989,-403.3502506,0.00012119,2]
[334042871,1722702637999,-727.33991579,0.00012119,2]